fUSD/lending_fUSD_20240803
["ID","MTS","AMOUNT","RATE_DAILY","PERIOD"]
[334014123,1722679857769,-500.0,0.00018082,2]
[334014124,1722679857778,-616.29276294,0.00018082,2]
[334014125,1722679857787,-500.0,0.00018082,2]
[334014126,1722679857796,-500.0,0.00018082,2]
[334014127,1722679857806,-500.0,0.00018082,2]
[334014128,1722679857816,-500.0,0.00018082,2]
[334014129,1722679857825,-500.0,0.00018082,2]
[334014130,1722679857838,-500.0,0.00018082,2]
[334014131,1722679857847,-500.0,0.00018082,2]
[334014132,1722679857857,-500.0,0.00018082,2]
[334014133,1722679857867,-500.0,0.00018082,2]
[334014134,1722679857877,-500.0,0.00018082,2]
[334014135,1722679857886,-500.0,0.00018082,2]
[334014136,1722679857899,-500.0,0.00018082,2]
[334014137,1722679857909,-500.0,0.00018082,2]
[334014138,1722679857919,-500.0,0.00018082,2]
[334014139,1722679857928,-724.65,0.00018082,2]
[334014140,1722679857938,-500.0,0.00018082,2]
[334014141,1722679857947,-500.0,0.00018082,2]
[334014142,1722679857957,-500.0,0.00018082,2]
[334014143,1722679857966,-500.0,0.00018082,2]
[334014144,1722679857975,-500.0,0.00018082,2]
[334014145,1722679857984,-500.0,0.00018082,2]
[334014146,1722679857993,-500.0,0.00018082,2]
[334014147,1722679858003,-500.0,0.00018082,2]
[334014148,1722679858012,-500.0,0.00018082,2]
[334014149,1722679858022,-500.0,0.00018082,2]
[334014150,1722679858033,-521.81854414,0.00018082,2]
[334014151,1722679858042,-500.0,0.00018082,2]
[334014152,1722679858054,-500.0,0.00018082,2]
[334014153,1722679858063,-500.0,0.00018082,2]
[334014154,1722679858073,-500.0,0.00018082,2]
[334014155,1722679858083,-500.0,0.00018082,2]
[334014156,1722679858092,-500.0,0.00018082,2]
[334014157,1722679858101,-500.0,0.00018082,2]
[334014158,1722679858111,-500.0,0.00018082,2]
[334014159,1722679858120,-169.62,0.00018082,2]
[334014160,1722679858130,-500.0,0.00018082,2]
[334014161,1722679858140,-497.49251012,0.00018082,2]
[334014162,1722679858150,-500.0,0.00018082,2]
[334014163,1722679858159,-500.0,0.00018082,2]
[334014164,1722679858169,-500.0,0.00018082,2]
[334014165,1722679858179,-500.0,0.00018082,2]
[334014166,1722679858189,-500.0,0.00018082,2]
[334014167,1722679858198,-500.0,0.00018082,2]
[334014168,1722679858207,-500.0,0.00018082,2]
[334014169,1722679858217,-1050.57,0.00018082,2]
[334014170,1722679858227,-500.0,0.00018082,2]
[334014171,1722679858236,-863.18,0.00018082,2]
[334014172,1722679858245,-500.0,0.00018082,2]
[334014173,1722679858254,-477.26111998,0.00018082,2]
[334014174,1722679858264,-500.0,0.00018082,2]
[334014175,1722679858274,-500.0,0.00018082,2]
[334014176,1722679858284,-500.0,0.00018082,2]
[334014177,1722679858293,-500.0,0.00018082,2]
[334014178,1722679858303,-500.0,0.00018082,2]
[334014179,1722679858313,-500.0,0.00018082,2]
[334014180,1722679858322,-539.35,0.00018082,2]
[334014181,1722679858331,-500.0,0.00018082,2]
[334014182,1722679858341,-500.0,0.00018082,2]
[334014183,1722679858350,-500.0,0.00018082,2]
[334014184,1722679858359,-500.0,0.00018082,2]
[334014185,1722679858368,-500.0,0.00018082,2]
[334014186,1722679858378,-500.0,0.00018082,2]
[334014187,1722679858387,-500.0,0.00018082,2]
[334014188,1722679858397,-500.0,0.00018082,2]
[334014189,1722679858407,-500.0,0.00018082,2]
[334014190,1722679858416,-500.0,0.00018082,2]
[334014191,1722679858425,-700.34,0.00018082,2]
[334014192,1722679858435,-500.0,0.00018082,2]
[334014193,1722679858445,-465.87853082,0.00018082,2]
[334014194,1722679858454,-500.0,0.00018082,2]
[334014195,1722679858464,-592.7,0.00018082,2]
[334014196,1722679858473,-500.0,0.00018082,2]
[334014197,1722679858483,-500.0,0.00018082,2]
[334014198,1722679858492,-500.0,0.00018082,2]
[334014199,1722679858502,-500.0,0.00018082,2]
[334014200,1722679858511,-500.0,0.00018082,2]
[334014201,1722679858521,-542.41,0.00018082,2]
[334014202,1722679858530,-551.5,0.00018082,2]
[334014203,1722679858541,-500.0,0.00018082,2]
[334014204,1722679858551,-500.0,0.00018082,2]
[334014205,1722679858560,-536.02555773,0.00018082,2]
[334014206,1722679858569,-2156.49,0.00018082,2]
[334014207,1722679858579,-763.4,0.00018082,2]
[334014208,1722679858588,-500.0,0.00018082,2]
[334014209,1722679858598,-500.0,0.00018082,2]
[334014210,1722679858607,-605.34,0.00018082,2]
[334014211,1722679858617,-2025.66,0.00018082,2]
[334014212,1722679858627,-533.71,0.00018082,2]
[334014213,1722679858637,-500.0,0.00018082,2]
[334014214,1722679858647,-500.0,0.00018082,2]
[334014215,1722679858656,-500.0,0.00018082,2]
[334014216,1722679858666,-985.87,0.00018082,2]
[334014217,1722679858675,-1174.52,0.00018082,2]
[334014218,1722679858684,-500.0,0.00018082,2]
[334014219,1722679858694,-500.0,0.00018082,2]
[334014220,1722679858703,-1586.69,0.00018082,2]
[334014221,1722679858713,-830.37,0.00018082,2]
[334014222,1722679858723,-500.0,0.00018082,2]
[334014223,1722679858733,-500.0,0.00018082,2]
[334014224,1722679858742,-412.21120206,0.00018082,2]
[334014225,1722679858752,-6184.42,0.00018082,2]
[334014226,1722679858761,-715.08,0.00018082,2]
[334014227,1722679858771,-2939.45,0.00018082,2]
[334014228,1722679858780,-500.0,0.00018082,2]
[334014229,1722679858791,-2824.94,0.00018082,2]
[334014230,1722679858800,-564.59570611,0.00018082,2]
[334014231,1722679858810,-728.72,0.00018082,2]
[334014232,1722679858820,-1733.44,0.00018082,2]
[334014233,1722679858831,-500.0,0.00018082,2]
[334014234,1722679858840,-612.74,0.00018082,2]
[334014235,1722679858850,-500.0,0.00018082,2]
[334014236,1722679858859,-1033.05,0.00018082,2]
[334014237,1722679858868,-2726.97,0.00018082,2]
[334014238,1722679858878,-500.0,0.00018082,2]
[334014239,1722679858888,-674.25,0.00018082,2]
[334014240,1722679858900,-500.0,0.00018082,2]
[334014241,1722679858912,-591.7,0.00018082,2]
[334014242,1722679858922,-500.0,0.00018082,2]
[334014243,1722679858933,-500.0,0.00018082,2]
[334014244,1722679858946,-797.47,0.00018082,2]
[334014245,1722679858956,-2712.22,0.00018082,2]
[334014246,1722679858967,-771.83,0.00018082,2]
[334014247,1722679858977,-500.0,0.00018082,2]
[334014248,1722679858986,-779.95,0.00018082,2]
[334014249,1722679858995,-1649.43,0.00018082,2]
[334014250,1722679859004,-500.0,0.00018082,2]
[334014251,1722679859013,-827.87,0.00018082,2]
[334014252,1722679859022,-500.0,0.00018082,2]
[334014253,1722679859031,-500.0,0.00018082,2]
[334014254,1722679859050,-694.73,0.00018082,2]
[334014255,1722679859060,-500.0,0.00018082,2]
[334014256,1722679859069,-1327.35,0.00018082,2]
[334014257,1722679859078,-1575.91,0.00018082,2]
[334014258,1722679859087,-500.0,0.00018082,2]
[334014259,1722679859096,-550.59,0.00018082,2]
[334014260,1722679859105,-1401.71,0.00018082,2]
[334014261,1722679859114,-500.0,0.00018082,2]
[334014262,1722679859123,-500.0,0.00018082,2]
[334014263,1722679859131,-813.6,0.00018082,2]
[334014264,1722679859140,-695.59,0.00018082,2]
[334014265,1722679859149,-500.0,0.00018082,2]
[334014266,1722679859158,-500.0,0.00018082,2]
[334014267,1722679859167,-500.0,0.00018082,2]
[334014268,1722679859176,-1465.19,0.00018082,2]
[334014269,1722679859185,-946.14,0.00018082,2]
[334014270,1722679859196,-500.0,0.00018082,2]
[334014271,1722679859206,-500.0,0.00018082,2]
[334014272,1722679859215,-500.0,0.00018082,2]
[334014273,1722679859224,-500.0,0.00018082,2]
[334014274,1722679859234,-500.0,0.00018082,2]
[334014275,1722679859243,-600.86,0.00018082,2]
[334014276,1722679859252,-500.0,0.00018082,2]
[334014277,1722679859262,-500.0,0.00018082,2]
[334014278,1722679859272,-578.27,0.00018082,2]
[334014279,1722679859281,-500.0,0.00018082,2]
[334014280,1722679859292,-500.0,0.00018082,2]
[334014281,1722679859301,-500.0,0.00018082,2]
[334014282,1722679859310,-839.29,0.00018082,2]
[334014283,1722679859319,-1182.76,0.00018082,2]
[334014284,1722679859328,-979.53,0.00018082,2]
[334014285,1722679859338,-264.42303759,0.00018082,2]
[334014286,1722679859347,-500.0,0.00018082,2]
[334014287,1722679859357,-1041.82,0.00018082,2]
[334014288,1722679859366,-500.0,0.00018082,2]
[334014289,1722679859375,-587.18,0.00018082,2]
[334014290,1722679859384,-505.01,0.00018082,2]
[334014291,1722679859394,-538.24,0.00018082,2]
[334014292,1722679859404,-548.04,0.00018082,2]
[334014293,1722679859414,-2230.61,0.00018082,2]
[334014294,1722679859424,-500.0,0.00018082,2]
[334014295,1722679859435,-500.0,0.00018082,2]
[334014296,1722679859445,-500.0,0.00018082,2]
[334014297,1722679859455,-965.02,0.00018082,2]
[334014298,1722679859465,-500.0,0.00018082,2]
[334014299,1722679859475,-1406.26,0.00018082,2]
[334014300,1722679859484,-500.0,0.00018082,2]
[334014301,1722679859494,-932.3,0.00018082,2]
[334014302,1722679859504,-500.0,0.00018082,2]
[334014303,1722679859514,-500.0,0.00018082,2]
[334014304,1722679859523,-996.2,0.00018082,2]
[334014305,1722679859533,-1149.12,0.00018082,2]
[334014306,1722679859543,-500.0,0.00018082,2]
[334014307,1722679859553,-556.75,0.00018082,2]
[334014308,1722679859562,-500.0,0.00018082,2]
[334014309,1722679859572,-500.0,0.00018082,2]
[334014310,1722679859581,-500.0,0.00018082,2]
[334014311,1722679859591,-500.0,0.00018082,2]
[334014312,1722679859601,-682.35,0.00018082,2]
[334014313,1722679859610,-1039.26,0.00018082,2]
[334014314,1722679859620,-500.0,0.00018082,2]
[334014315,1722679859629,-500.0,0.00018082,2]
[334014316,1722679859639,-670.1,0.00018082,2]
[334014317,1722679859649,-1099.2,0.00018082,2]
[334014318,1722679859659,-500.0,0.00018082,2]
[334014319,1722679859668,-500.0,0.00018082,2]
[334014320,1722679859678,-1762.59,0.00018082,2]
[334014321,1722679859688,-1538.41,0.00018082,2]
[334014322,1722679859698,-508.97,0.00018082,2]
[334014323,1722679859707,-500.0,0.00018082,2]
[334014324,1722679859717,-524.29,0.00018082,2]
[334014325,1722679859727,-509.71,0.00018082,2]
[334014326,1722679859736,-500.0,0.00018082,2]
[334014327,1722679859746,-500.0,0.00018082,2]
[334014328,1722679859756,-2869.52,0.00018082,2]
[334014329,1722679859766,-962.43,0.00018082,2]
[334014330,1722679859775,-500.0,0.00018082,2]
[334014331,1722679859787,-845.82,0.00018082,2]
[334014332,1722679859804,-799.98,0.00018082,2]
[334014333,1722679859813,-500.0,0.00018082,2]
[334014334,1722679859824,-990.59,0.00018082,2]
[334014335,1722679859838,-500.0,0.00018082,2]
[334014336,1722679859848,-500.0,0.00018082,2]
[334014337,1722679859857,-722.18,0.00018082,2]
[334014338,1722679859867,-946.75,0.00018082,2]
[334014339,1722679859878,-3094.92,0.00018082,2]
[334014340,1722679859888,-1648.87,0.00018082,2]
[334014341,1722679859898,-500.0,0.00018082,2]
[334014342,1722679859908,-282.52995135,0.00018082,2]
[334014343,1722679859920,-546.6,0.00018082,2]
[334014344,1722679859929,-649.4,0.00018082,2]
[334014345,1722679859940,-756.12,0.00018082,2]
[334014346,1722679859950,-549.28,0.00018082,2]
[334014347,1722679859959,-4776.75,0.00018082,2]
[334014348,1722679859968,-500.0,0.00018082,2]
[334014349,1722679859978,-1739.26,0.00018082,2]
[334014350,1722679859988,-633.04,0.00018082,2]
[334014351,1722679859998,-500.0,0.00018082,2]
[334014352,1722679860008,-894.83,0.00018082,2]
[334014353,1722679860017,-500.0,0.00018082,2]
[334014354,1722679860029,-679.21,0.00018082,2]
[334014355,1722679860039,-500.0,0.00018082,2]
[334014356,1722679860048,-5258.6,0.00018082,2]
[334014357,1722679860057,-1863.79,0.00018082,2]
[334014358,1722679860066,-1520.3,0.00018082,2]
[334014359,1722679860076,-2610.29,0.00018082,2]
[334014360,1722679860086,-794.69,0.00018082,2]
[334014361,1722679860096,-608.3,0.00018082,2]
[334014362,1722679860108,-500.0,0.00018082,2]
[334014363,1722679860118,-200.0,0.0001823,2]
[334014364,1722679860128,-278.95564096,0.00018241,2]
[334014365,1722679860139,-5587.69696956,0.00018241,2]
[334014366,1722679860148,-1228.92,0.00018355,2]
[334014367,1722679860158,-500.0,0.00018355,2]
[334014368,1722679860168,-500.0,0.00018355,2]
[334014369,1722679860178,-1487.36,0.00018355,2]
[334014370,1722679860187,-586.29,0.00018355,2]
[334014371,1722679860198,-509.23,0.00018355,2]
[334014372,1722679860207,-1514.24,0.00018355,2]
[334014373,1722679860219,-547.25,0.00018355,2]
[334014374,1722679860231,-500.0,0.00018355,2]
[334014375,1722679860243,-632.81,0.00018355,2]
[334014376,1722679860255,-1002.48,0.00018355,2]
[334014377,1722679860267,-500.0,0.00018355,2]
[334014378,1722679860278,-500.0,0.00018355,2]
[334014379,1722679860292,-690.99,0.00018355,2]
[334014380,1722679860303,-1486.0,0.00018355,2]
[334014381,1722679860314,-757.77,0.00018355,2]
[334014382,1722679860324,-1053.29,0.00018355,2]
[334014383,1722679860335,-500.0,0.00018355,2]
[334014384,1722679860345,-500.0,0.00018355,2]
[334014385,1722679860357,-2310.93,0.00018355,2]
[334014386,1722679860369,-500.0,0.00018356,2]
[334014387,1722679860380,-500.0,0.00018356,2]
[334014388,1722679860391,-500.0,0.00018356,2]
[334014389,1722679860403,-500.0,0.00018356,2]
[334014390,1722679860414,-500.0,0.00018356,2]
[334014391,1722679860425,-500.0,0.00018356,2]
[334014392,1722679860436,-155.20424529,0.00018356,2]
[334014393,1722679860448,-500.0,0.00018356,2]
[334014394,1722679860460,-500.0,0.00018356,2]
[334014395,1722679860471,-500.0,0.00018356,2]
[334014396,1722679860482,-500.0,0.00018356,2]
[334014397,1722679860493,-500.0,0.00018356,2]
[334014398,1722679860504,-500.0,0.00018356,2]
[334014399,1722679860516,-500.0,0.00018356,2]
[334014400,1722679860528,-500.0,0.00018356,2]
[334014401,1722679860539,-500.0,0.00018356,2]
[334014402,1722679860550,-500.0,0.00018356,2]
[334014403,1722679860561,-500.0,0.00018356,2]
[334014404,1722679860571,-1038.92,0.00018356,2]
[334014405,1722679860583,-500.0,0.00018356,2]
[334014406,1722679860593,-480.37175873,0.00018356,2]
[334014407,1722679860604,-500.0,0.00018356,2]
[334014408,1722679860615,-500.0,0.00018356,2]
[334014409,1722679860626,-500.0,0.00018356,2]
[334014410,1722679860637,-500.0,0.00018356,2]
[334014411,1722679860648,-500.0,0.00018356,2]
[334014412,1722679860659,-500.0,0.00018356,2]
[334014413,1722679860670,-551.64,0.00018356,2]
[334014414,1722679860681,-500.0,0.00018356,2]
[334014415,1722679860692,-500.0,0.00018356,2]
[334014416,1722679860703,-500.0,0.00018356,2]
[334014417,1722679860714,-500.0,0.00018356,2]
[334014418,1722679860725,-377.71691436,0.00018356,2]
[334014419,1722679860735,-1131.87,0.00018356,2]
[334014420,1722679860745,-512.59627021,0.00018356,2]
[334014421,1722679860756,-500.0,0.00018356,2]
[334014422,1722679860767,-500.0,0.00018356,2]
[334014423,1722679860778,-500.0,0.00018356,2]
[334014424,1722679860788,-780.23,0.00018356,2]
[334014425,1722679860800,-580.49,0.00018356,2]
[334014426,1722679860810,-500.0,0.00018356,2]
[334014427,1722679860824,-245.72203243,0.00018356,2]
[334014428,1722679860835,-500.0,0.00018356,2]
[334014429,1722679860846,-162.03680817,0.00018356,2]
[334014430,1722679860857,-500.0,0.00018356,2]
[334014431,1722679860869,-304.41290291,0.00018356,2]
[334014432,1722679860879,-500.0,0.00018356,2]
[334014433,1722679860891,-500.0,0.00018356,2]
[334014434,1722679860907,-500.0,0.00018356,2]
[334014435,1722679860919,-500.0,0.00018356,2]
[334014436,1722679860931,-500.0,0.00018356,2]
[334014437,1722679860945,-500.0,0.00018356,2]
[334014438,1722679860957,-500.0,0.00018356,2]
[334014439,1722679860969,-151.56549786,0.00018356,2]
[334014440,1722679860982,-524.4144335,0.00018356,2]
[334014441,1722679860993,-394.61829677,0.00018356,2]
[334014442,1722679861004,-500.0,0.00018356,2]
[334014443,1722679861014,-500.0,0.00018356,2]
[334014444,1722679861025,-724.65,0.00018356,2]
[334014445,1722679861035,-500.0,0.00018356,2]
[334014446,1722679861045,-500.0,0.00018356,2]
[334014447,1722679861055,-500.0,0.00018356,2]
[334014448,1722679861065,-500.0,0.00018356,2]
[334014449,1722679861076,-500.0,0.00018356,2]
[334014450,1722679861088,-500.0,0.00018356,2]
[334014451,1722679861099,-467.28817663,0.00018356,2]
[334014452,1722679861111,-500.0,0.00018356,2]
[334014453,1722679861123,-500.0,0.00018356,2]
[334014454,1722679861133,-500.0,0.00018356,2]
[334014455,1722679861144,-571.52605039,0.00018356,2]
[334014456,1722679861153,-500.0,0.00018356,2]
[334014457,1722679861164,-500.0,0.00018356,2]
[334014458,1722679861176,-500.0,0.00018356,2]
[334014459,1722679861186,-500.0,0.00018356,2]
[334014460,1722679861197,-500.0,0.00018356,2]
[334014461,1722679861207,-500.0,0.00018356,2]
[334014462,1722679861218,-500.0,0.00018356,2]
[334014463,1722679861229,-169.62,0.00018356,2]
[334014464,1722679861239,-500.0,0.00018356,2]
[334014465,1722679861250,-500.0,0.00018356,2]
[334014466,1722679861260,-439.27987589,0.00018356,2]
[334014467,1722679861270,-500.0,0.00018356,2]
[334014468,1722679861280,-500.0,0.00018356,2]
[334014469,1722679861290,-500.0,0.00018356,2]
[334014470,1722679861300,-500.0,0.00018356,2]
[334014471,1722679861310,-500.0,0.00018356,2]
[334014472,1722679861320,-1050.57,0.00018356,2]
[334014473,1722679861330,-500.0,0.00018356,2]
[334014474,1722679861340,-863.18,0.00018356,2]
[334014475,1722679861350,-500.0,0.00018356,2]
[334014476,1722679861360,-500.0,0.00018356,2]
[334014477,1722679861370,-500.0,0.00018356,2]
[334014478,1722679861380,-500.0,0.00018356,2]
[334014479,1722679861391,-500.0,0.00018356,2]
[334014480,1722679861401,-500.0,0.00018356,2]
[334014481,1722679861415,-500.0,0.00018356,2]
[334014482,1722679861425,-539.35,0.00018356,2]
[334014483,1722679861436,-500.0,0.00018356,2]
[334014484,1722679861446,-500.0,0.00018356,2]
[334014485,1722679861456,-500.0,0.00018356,2]
[334014486,1722679861467,-500.0,0.00018356,2]
[334014487,1722679861477,-500.0,0.00018356,2]
[334014488,1722679861487,-500.0,0.00018356,2]
[334014489,1722679861497,-500.0,0.00018356,2]
[334014490,1722679861507,-500.0,0.00018356,2]
[334014491,1722679861518,-500.0,0.00018356,2]
[334014492,1722679861529,-483.33510421,0.00018356,2]
[334014493,1722679861540,-700.34,0.00018356,2]
[334014494,1722679861551,-225.6717065,0.00018356,2]
[334014495,1722679861561,-500.0,0.00018356,2]
[334014496,1722679861571,-592.7,0.00018356,2]
[334014497,1722679861582,-500.0,0.00018356,2]
[334014498,1722679861592,-500.0,0.00018356,2]
[334014499,1722679861603,-314.15608921,0.00018356,2]
[334014500,1722679861614,-500.0,0.00018356,2]
[334014501,1722679861624,-500.0,0.00018356,2]
[334014502,1722679861635,-542.41,0.00018356,2]
[334014503,1722679861645,-551.5,0.00018356,2]
[334014504,1722679861656,-500.0,0.00018356,2]
[334014505,1722679861666,-500.0,0.00018356,2]
[334014506,1722679861677,-2156.49,0.00018356,2]
[334014507,1722679861688,-763.4,0.00018356,2]
[334014508,1722679861698,-500.0,0.00018356,2]
[334014509,1722679861709,-500.0,0.00018356,2]
[334014510,1722679861720,-605.34,0.00018356,2]
[334014511,1722679861731,-2025.66,0.00018356,2]
[334014512,1722679861742,-533.71,0.00018356,2]
[334014513,1722679861753,-500.0,0.00018356,2]
[334014514,1722679861763,-500.0,0.00018356,2]
[334014515,1722679861774,-500.0,0.00018356,2]
[334014516,1722679861786,-985.87,0.00018356,2]
[334014517,1722679861796,-1174.52,0.00018356,2]
[334014518,1722679861806,-500.0,0.00018356,2]
[334014519,1722679861816,-500.0,0.00018356,2]
[334014520,1722679861829,-1586.69,0.00018356,2]
[334014521,1722679861840,-830.37,0.00018356,2]
[334014522,1722679861851,-500.0,0.00018356,2]
[334014523,1722679861861,-500.0,0.00018356,2]
[334014524,1722679861872,-6184.42,0.00018356,2]
[334014525,1722679861883,-715.08,0.00018356,2]
[334014526,1722679861894,-2939.45,0.00018356,2]
[334014527,1722679861904,-500.0,0.00018356,2]
[334014528,1722679861915,-2824.94,0.00018356,2]
[334014529,1722679861925,-728.72,0.00018356,2]
[334014530,1722679861935,-1733.44,0.00018356,2]
[334014531,1722679861945,-500.0,0.00018356,2]
[334014532,1722679861955,-612.74,0.00018356,2]
[334014533,1722679861966,-500.0,0.00018356,2]
[334014534,1722679861976,-1033.05,0.00018356,2]
[334014535,1722679861986,-2726.97,0.00018356,2]
[334014536,1722679861997,-500.0,0.00018356,2]
[334014537,1722679862007,-674.25,0.00018356,2]
[334014538,1722679862017,-591.7,0.00018356,2]
[334014539,1722679862028,-500.0,0.00018356,2]
[334014540,1722679862039,-500.0,0.00018356,2]
[334014541,1722679862051,-500.0,0.00018356,2]
[334014542,1722679862061,-797.47,0.00018356,2]
[334014543,1722679862072,-2712.22,0.00018356,2]
[334014544,1722679862082,-771.83,0.00018356,2]
[334014545,1722679862092,-646.16580387,0.00018356,2]
[334014546,1722679862103,-779.95,0.00018356,2]
[334014547,1722679862113,-1649.43,0.00018356,2]
[334014548,1722679862123,-500.0,0.00018356,2]
[334014549,1722679862137,-827.87,0.00018356,2]
[334014550,1722679862148,-500.0,0.00018356,2]
[334014551,1722679862159,-500.0,0.00018356,2]
[334014552,1722679862169,-694.73,0.00018356,2]
[334014553,1722679862179,-500.0,0.00018356,2]
[334014554,1722679862190,-1327.35,0.00018356,2]
[334014555,1722679862200,-1575.91,0.00018356,2]
[334014556,1722679862210,-500.0,0.00018356,2]
[334014557,1722679862221,-550.59,0.00018356,2]
[334014558,1722679862231,-1401.71,0.00018356,2]
[334014559,1722679862241,-500.0,0.00018356,2]
[334014560,1722679862252,-500.0,0.00018356,2]
[334014561,1722679862262,-813.6,0.00018356,2]
[334014562,1722679862965,-695.59,0.00018356,2]
[334014563,1722679862986,-500.0,0.00018356,2]
[334014564,1722679862996,-500.0,0.00018356,2]
[334014565,1722679863006,-500.0,0.00018356,2]
[334014566,1722679863016,-1465.19,0.00018356,2]
[334014567,1722679863025,-946.14,0.00018356,2]
[334014568,1722679863035,-500.0,0.00018356,2]
[334014569,1722679863046,-500.0,0.00018356,2]
[334014570,1722679863056,-500.0,0.00018356,2]
[334014571,1722679863067,-295.97008175,0.00018356,2]
[334014572,1722679863076,-500.0,0.00018356,2]
[334014573,1722679863086,-600.86,0.00018356,2]
[334014574,1722679863096,-500.0,0.00018356,2]
[334014575,1722679863106,-495.55709649,0.00018356,2]
[334014576,1722679863116,-578.27,0.00018356,2]
[334014577,1722679863126,-500.0,0.00018356,2]
[334014578,1722679863135,-500.0,0.00018356,2]
[334014579,1722679863145,-500.0,0.00018356,2]
[334014580,1722679863155,-839.29,0.00018356,2]
[334014581,1722679863165,-1182.76,0.00018356,2]
[334014582,1722679863175,-979.53,0.00018356,2]
[334014583,1722679863184,-500.0,0.00018356,2]
[334014584,1722679863194,-1041.82,0.00018356,2]
[334014585,1722679863203,-500.0,0.00018356,2]
[334014586,1722679863213,-587.18,0.00018356,2]
[334014587,1722679863223,-505.01,0.00018356,2]
[334014588,1722679863232,-538.24,0.00018356,2]
[334014589,1722679863242,-548.04,0.00018356,2]
[334014590,1722679863252,-2230.61,0.00018356,2]
[334014591,1722679863261,-500.0,0.00018356,2]
[334014592,1722679863271,-500.0,0.00018356,2]
[334014593,1722679863281,-500.0,0.00018356,2]
[334014594,1722679863291,-965.02,0.00018356,2]
[334014595,1722679863301,-328.77134456,0.00018356,2]
[334014596,1722679863311,-1406.26,0.00018356,2]
[334014597,1722679863321,-500.0,0.00018356,2]
[334014598,1722679863331,-932.3,0.00018356,2]
[334014599,1722679863340,-500.0,0.00018356,2]
[334014600,1722679863349,-500.0,0.00018356,2]
[334014601,1722679863359,-996.2,0.00018356,2]
[334014602,1722679863369,-1149.12,0.00018356,2]
[334014603,1722679863378,-556.75,0.00018356,2]
[334014604,1722679863388,-500.0,0.00018356,2]
[334014605,1722679863398,-500.0,0.00018356,2]
[334014606,1722679863408,-500.0,0.00018356,2]
[334014607,1722679863417,-500.0,0.00018356,2]
[334014608,1722679863427,-500.0,0.00018356,2]
[334014609,1722679863436,-682.35,0.00018356,2]
[334014610,1722679863447,-1039.26,0.00018356,2]
[334014611,1722679863457,-500.0,0.00018356,2]
[334014612,1722679863467,-500.0,0.00018356,2]
[334014613,1722679863478,-670.1,0.00018356,2]
[334014614,1722679863488,-1099.2,0.00018356,2]
[334014615,1722679863498,-500.0,0.00018356,2]
[334014616,1722679863507,-500.0,0.00018356,2]
[334014617,1722679863517,-1762.59,0.00018356,2]
[334014618,1722679863526,-1538.41,0.00018356,2]
[334014619,1722679863536,-508.97,0.00018356,2]
[334014620,1722679863546,-500.0,0.00018356,2]
[334014621,1722679863556,-524.29,0.00018356,2]
[334014622,1722679863566,-509.71,0.00018356,2]